fUST/lending_fUST_20250313
["ID","MTS","AMOUNT","RATE_DAILY","PERIOD"]
[356017795,1741800642717,-500.0,0.00021917,2]
[356017796,1741800642727,-332.375425,0.00021917,2]
[356017797,1741800642736,-1930.96,0.00021917,2]
[356017798,1741800642745,-550.43,0.00021917,2]
[356017799,1741800642755,-797.87,0.00021917,2]
[356017800,1741800642765,-179.435988,0.00021917,2]
[356017801,1741800642774,-500.0,0.00021917,2]
[356017802,1741800642784,-517.61,0.00021917,2]
[356017803,1741800642793,-786.64,0.00021917,2]
[356017804,1741800642803,-179.435988,0.00021917,2]
[356017805,1741800642812,-500.0,0.00021917,2]
[356017806,1741800642821,-500.0,0.00021917,2]
[356017807,1741800642831,-151.0,0.00021917,2]
[356017808,1741800642840,-1125.31,0.00021917,2]
[356017809,1741800642850,-2340.79,0.00021917,2]
[356017810,1741800642859,-151.0,0.00021917,2]
[356017811,1741800642869,-151.0,0.00021917,2]
[356017812,1741800642878,-500.0,0.00021917,2]
[356017813,1741800642888,-500.0,0.00021917,2]
[356017814,1741800642898,-500.0,0.00021917,2]
[356017815,1741800642907,-500.0,0.00021917,2]
[356017816,1741800642916,-2799.75,0.00021917,2]
[356017817,1741800642929,-500.0,0.00021917,2]
[356017818,1741800642938,-500.0,0.00021917,2]
[356017819,1741800642947,-2246.09,0.00021917,2]
[356017820,1741800642956,-500.0,0.00021917,2]
[356017822,1741800642966,-618.55,0.00021917,2]
[356017824,1741800642975,-500.0,0.00021917,2]
[356017827,1741800642985,-151.0,0.00021917,2]
[356017829,1741800642995,-2064.94,0.00021917,2]
[356017831,1741800643005,-500.0,0.00021917,2]
[356017832,1741800643014,-500.0,0.00021917,2]
[356017833,1741800643024,-500.0,0.00021917,2]
[356017835,1741800643033,-500.0,0.00021917,2]
[356017837,1741800643043,-500.0,0.00021917,2]
[356017839,1741800643053,-1674.88,0.00021917,2]
[356017841,1741800643062,-1698.85,0.00021917,2]
[356017843,1741800643072,-268.11821069,0.00021973,2]
[356017845,1741800643082,-500.0,0.00021973,2]
[356017848,1741800643091,-500.0,0.00021973,2]
[356017850,1741800643101,-554.78706975,0.00021973,2]
[356017851,1741800643110,-500.0,0.00021973,2]
[356017853,1741800643119,-500.0,0.00021973,2]
[356017854,1741800643129,-500.0,0.00021973,2]
[356017855,1741800643138,-500.0,0.00021973,2]
[356017856,1741800643148,-387.07891098,0.00021973,2]
[356017857,1741800643158,-500.0,0.00021973,2]
[356017858,1741800643168,-500.0,0.00021973,2]
[356017859,1741800643178,-500.0,0.00021973,2]
[356017860,1741800643187,-500.0,0.00021973,2]
[356017861,1741800643197,-500.0,0.00021973,2]
[356017863,1741800643206,-500.0,0.00021973,2]
[356017865,1741800643215,-500.0,0.00021973,2]
[356017867,1741800643224,-617.75880392,0.00021973,2]
[356017868,1741800643234,-500.0,0.00021973,2]
[356017869,1741800643243,-500.0,0.00021973,2]
[356017870,1741800643253,-500.0,0.00021973,2]
[356017871,1741800643262,-500.0,0.00021973,2]
[356017872,1741800643271,-500.0,0.00021973,2]
[356017873,1741800643281,-500.0,0.00021973,2]
[356017874,1741800643291,-500.0,0.00021973,2]
[356017875,1741800643300,-500.0,0.00021973,2]
[356017876,1741800643310,-500.0,0.00021973,2]
[356017877,1741800643319,-267.34800213,0.00021973,2]
[356017878,1741800643329,-500.0,0.00021973,2]
[356017879,1741800643338,-500.0,0.00021973,2]
[356017880,1741800643347,-2000.0,0.00022,2]
[356017881,1741800643357,-500.0,0.00022173,2]
[356017882,1741800643366,-500.0,0.00022173,2]
[356017883,1741800643377,-500.0,0.00022173,2]
[356017884,1741800643391,-500.0,0.00022173,2]
[356017885,1741800643400,-500.0,0.00022173,2]
[356017886,1741800643410,-500.0,0.00022173,2]
[356017887,1741800643419,-500.0,0.00022173,2]
[356017888,1741800643430,-500.0,0.00022173,2]
[356017889,1741800643439,-500.0,0.00022173,2]
[356017890,1741800643450,-166.97971497,0.00022173,2]
[356017891,1741800643460,-500.0,0.00022173,2]
[356017892,1741800643469,-500.0,0.00022173,2]
[356017893,1741800643479,-500.0,0.00022173,2]
[356017894,1741800643489,-500.0,0.00022173,2]
[356017895,1741800643498,-500.0,0.00022173,2]
[356017896,1741800643508,-500.0,0.00022173,2]
[356017897,1741800643518,-500.0,0.00022173,2]
[356017898,1741800643527,-500.0,0.00022173,2]
[356017899,1741800643537,-500.0,0.00022173,2]
[356017900,1741800643547,-500.0,0.00022173,2]
[356017901,1741800643556,-500.0,0.00022173,2]
[356017902,1741800643567,-500.0,0.00022173,2]
[356017903,1741800643576,-500.0,0.00022173,2]
[356017904,1741800643585,-500.0,0.00022173,2]
[356017905,1741800643595,-500.0,0.00022173,2]
[356017906,1741800643605,-500.0,0.00022173,2]
[356017907,1741800643615,-500.0,0.00022173,2]
[356017908,1741800643624,-500.0,0.00022173,2]
[356017909,1741800643633,-162.76484165,0.00022173,2]
[356017910,1741800643642,-500.0,0.00022173,2]
[356017911,1741800643652,-500.0,0.00022173,2]
[356017912,1741800643661,-500.0,0.00022173,2]
[356017913,1741800643673,-500.0,0.00022173,2]
[356017914,1741800643683,-500.0,0.00022173,2]
[356017916,1741800643692,-151.0,0.00022173,7]
[356017918,1741800643702,-151.0,0.00022173,7]
[356017919,1741800643711,-151.0,0.00022173,7]
[356017921,1741800643721,-151.0,0.00022173,7]
[356017923,1741800643731,-1000.0,0.00022189,2]
[356017924,1741800643740,-196.72406867,0.0002219,2]
[356017926,1741800643749,-55255.37752526,0.00022191,5]
[356017928,1741800643759,-4857.14506102,0.00022191,5]
[356017929,1741800643769,-151.151161,0.00022191,7]
[356017930,1741800643779,-337.003428,0.00022191,7]
[356017931,1741800643788,-337.003428,0.00022191,7]
[356017932,1741800643798,-337.003428,0.00022191,7]
[356017933,1741800643808,-337.003428,0.00022191,7]
[356017934,1741800643817,-500.0,0.00022191,2]
[356017935,1741800643827,-500.0,0.00022191,2]
[356017936,1741800643836,-500.0,0.00022191,2]
[356017937,1741800643846,-500.0,0.00022191,2]
[356017938,1741800643855,-500.0,0.00022191,2]
[356017939,1741800643865,-500.0,0.00022191,2]
[356017940,1741800643874,-500.0,0.00022191,2]
[356017941,1741800643884,-623.84,0.00022191,2]
[356017942,1741800643894,-500.0,0.00022191,2]
[356017943,1741800643903,-500.0,0.00022191,2]
[356017944,1741800643912,-209.09023234,0.00022191,2]
[356017945,1741800643923,-566.13,0.00022191,2]
[356017946,1741800643932,-500.0,0.00022191,2]
[356017947,1741800643942,-500.0,0.00022191,2]
[356017948,1741800643951,-500.0,0.00022191,2]
[356017949,1741800643960,-151.0,0.00022191,7]
[356017950,1741800643970,-500.0,0.00022191,2]
[356017951,1741800643980,-500.0,0.00022191,2]
[356017952,1741800643990,-500.0,0.00022191,2]
[356017953,1741800643999,-500.0,0.00022191,2]
[356017954,1741800644011,-500.0,0.00022191,2]
[356017955,1741800644020,-500.0,0.00022191,2]
[356017956,1741800644030,-500.0,0.00022191,2]
[356017957,1741800644040,-500.0,0.00022191,2]
[356017958,1741800644049,-151.0,0.00022191,7]
[356017959,1741800644058,-151.0,0.00022191,7]
[356017960,1741800644068,-165.234174,0.00022191,7]
[356017961,1741800644078,-500.0,0.00022191,2]
[356017962,1741800644087,-500.0,0.00022191,2]
[356017963,1741800644096,-430.51,0.00022191,2]
[356017964,1741800644107,-500.0,0.00022191,2]
[356017965,1741800644116,-151.0,0.00022191,7]
[356017966,1741800644126,-151.0,0.00022191,7]
[356017967,1741800644135,-500.0,0.00022191,2]
[356017968,1741800644145,-500.0,0.00022191,2]
[356017969,1741800644155,-599.0,0.00022191,2]
[356017970,1741800644164,-151.0,0.00022191,7]
[356017971,1741800644175,-151.0,0.00022191,7]
[356017972,1741800644184,-500.0,0.00022191,2]
[356017973,1741800644194,-500.0,0.00022191,2]
[356017974,1741800644203,-500.0,0.00022191,2]
[356017975,1741800644212,-161.402126,0.00022191,7]
[356017976,1741800644222,-500.0,0.00022191,2]
[356017977,1741800644231,-500.0,0.00022191,2]
[356017978,1741800644240,-511.25787417,0.00022191,2]
[356017979,1741800644250,-151.0,0.00022191,7]
[356017980,1741800644260,-151.0,0.00022191,7]
[356017981,1741800644269,-201.27506493,0.00022191,2]
[356017982,1741800644597,-400.46900498,0.00021917,2]
[356017990,1741800646413,-1800.0,0.00021717,2]
[356017991,1741800646472,-2659.79,0.00021717,2]
[356017992,1741800646485,-628.45000009,0.00021717,2]
[356017995,1741800767926,637.98,0.00018,2]
[356017996,1741800868522,300.0,0.000179,7]
[356017997,1741800954507,574.18,0.00018,2]
[356017999,1741801143593,516.76,0.00018,2]
[356018000,1741801329789,465.08,0.00018,2]
[356018001,1741801515918,418.58,0.00018,2]
[356018003,1741801674983,1025.82,0.00018,2]
[356018004,1741801702204,376.72,0.00018,2]
[356018028,1741801832704,-300.0,0.000194,8]
[356018030,1741801832713,-206.57280046,0.00020723,2]
[356018032,1741801832724,-93.42719954,0.00020723,2]
[356018034,1741801832734,-3733.57597818,0.00020724,2]
[356018035,1741801832745,-7773.8674153,0.00020724,2]
[356018036,1741801832772,-678.13987002,0.00020724,2]
[356018037,1741801832781,-300.0,0.000209,9]
[356018038,1741801832790,-839.35184397,0.000209,2]
[356018039,1741801832803,-302.0,0.000209,2]
[356018040,1741801832827,-845.98825703,0.000209,2]
[356018041,1741801832836,-500.0,0.00021,2]
[356018042,1741801832845,-276.8248885,0.00021,2]
[356018043,1741801832854,-339.21185447,0.00021647,2]
[356018071,1741801838507,-1342.95880892,0.00021647,2]
[356018072,1741801838516,-223.59821036,0.00021716,2]
[356018073,1741801838526,-224.87433385,0.00021716,2]
[356018074,1741801838535,-156.51874725,0.00021716,2]
[356018075,1741801838544,-500.0,0.00021716,2]
[356018076,1741801838553,-500.0,0.00021716,2]
[356018078,1741801838562,-500.0,0.00021716,2]
[356018080,1741801838571,-500.0,0.00021716,2]
[356018081,1741801838581,-500.0,0.00021716,2]
[356018083,1741801838591,-290.64107777,0.00021716,2]
[356018085,1741801838600,-1999.94,0.00021716,2]
[356018087,1741801838609,-216911.75999991,0.00021717,2]
[356018088,1741801838619,-5132.5661978,0.00021747,2]
[356018089,1741801838627,-268.11821069,0.00021773,2]
[356018090,1741801838636,-500.0,0.00021773,2]
[356018092,1741801838645,-157.54244789,0.00021773,2]
[356018094,1741801838654,-274.31055979,0.00021773,2]
[356018095,1741801838664,-500.0,0.00021773,2]
[356018096,1741801838674,-500.0,0.00021773,2]
[356018097,1741801838683,-500.0,0.00021773,2]
[356018098,1741801838692,-206.18693964,0.00021773,2]
[356018099,1741801838701,-323.28705421,0.00021773,2]
[356018100,1741801838711,-503.43618055,0.00021773,2]
[356018101,1741801838720,-500.43145444,0.00021773,2]
[356018102,1741801838729,-500.0,0.00021773,2]
[356018103,1741801838738,-500.0,0.00021773,2]
[356018104,1741801838747,-500.0,0.00021773,2]
[356018105,1741801838757,-500.0,0.00021773,2]
[356018106,1741801838768,-500.0,0.00021773,2]
[356018107,1741801838778,-500.0,0.00021773,2]
[356018108,1741801838787,-160.48537296,0.00021773,2]
[356018109,1741801838797,-163.37783337,0.00021773,2]
[356018110,1741801838808,-500.0,0.00021773,2]
[356018111,1741801838817,-500.0,0.00021773,2]
[356018112,1741801838827,-500.0,0.00021773,2]
[356018113,1741801838836,-500.0,0.00021773,2]
[356018114,1741801838845,-500.0,0.00021773,2]
[356018115,1741801838854,-160.0397721,0.00021773,2]
[356018116,1741801838864,-500.0,0.00021773,2]
[356018117,1741801838874,-500.0,0.00021773,2]
[356018118,1741801838883,-500.0,0.00021773,2]
[356018119,1741801838893,-332.08724457,0.00021773,2]
[356018120,1741801838902,-500.0,0.00021773,2]
[356018121,1741801838911,-375.85984233,0.00021773,2]
[356018122,1741801838921,-160.45532847,0.00021773,2]
[356018123,1741801838930,-160.4360721,0.00021773,2]
[356018124,1741801838940,-404.7363472,0.00021773,2]
[356018125,1741801838950,-159.43520626,0.00021773,2]
[356018126,1741801838961,-500.0,0.00021773,2]
[356018127,1741801838970,-159.59110693,0.00021773,2]
[356018128,1741801838979,-160.43794313,0.00021773,2]
[356018129,1741801838989,-510.54681435,0.00021773,2]
[356018130,1741801838998,-500.0,0.00021773,2]
[356018131,1741801839008,-500.0,0.00021773,2]
[356018132,1741801839017,-500.0,0.00021773,2]
[356018133,1741801839026,-500.0,0.00021773,2]
[356018134,1741801839038,-500.40847955,0.00021773,2]
[356018135,1741801839047,-500.14221065,0.00021773,2]
[356018136,1741801839057,-160.46871374,0.00021773,2]
[356018137,1741801839066,-500.0,0.00021773,2]
[356018138,1741801839075,-160.45323151,0.00021773,2]
[356018139,1741801839084,-500.0,0.00021773,2]
[356018140,1741801839094,-500.0,0.00021773,2]
[356018141,1741801839105,-500.0,0.00021773,2]
[356018142,1741801839114,-500.0,0.00021773,2]
[356018143,1741801839123,-500.35366532,0.00021773,2]
[356018144,1741801839132,-500.0,0.00021773,2]
[356018145,1741801839141,-500.0,0.00021773,2]
[356018146,1741801839150,-500.0,0.00021773,2]
[356018147,1741801839160,-500.23620417,0.00021773,2]
[356018148,1741801839169,-500.0,0.00021773,2]
[356018149,1741801839178,-500.0,0.00021773,2]
[356018150,1741801839187,-501.51281935,0.00021773,2]
[356018151,1741801839197,-500.0,0.00021773,2]
[356018152,1741801839206,-500.0,0.00021773,2]
[356018153,1741801839218,-500.0,0.00021773,2]
[356018154,1741801839227,-303.29956193,0.00021773,2]
[356018155,1741801839236,-500.0,0.00021773,2]
[356018156,1741801839245,-210.90733146,0.00021773,2]
[356018157,1741801839255,-500.0,0.00021773,2]
[356018158,1741801839264,-500.79311889,0.00021773,2]
[356018159,1741801839274,-500.0,0.00021773,2]
[356018160,1741801839283,-252.35017178,0.00021773,2]
[356018161,1741801839292,-500.0,0.00021773,2]
[356018162,1741801839302,-154.15072561,0.00021773,2]
[356018163,1741801839311,-500.0,0.00021773,2]
[356018164,1741801839321,-500.0,0.00021773,2]
[356018165,1741801839330,-267.34800213,0.00021773,2]
[356018166,1741801839340,-500.0,0.00021773,2]
[356018167,1741801839349,-169.88853558,0.00021773,2]
[356018168,1741801839358,-500.0,0.00021773,2]
[356018169,1741801839367,-267.62678819,0.00021773,2]
[356018170,1741801839376,-3703.5323977,0.00021817,2]
[356018171,1741801839385,-1987.34010094,0.00021866,3]
[356018172,1741801839395,-600.0,0.00021904,2]
[356018173,1741801839404,-1000.0,0.00021916,2]
[356018174,1741801839414,-1000.0,0.00021916,2]
[356018175,1741801839423,-1000.0,0.00021916,2]
[356018176,1741801839432,-1000.0,0.00021916,2]
[356018177,1741801839441,-500.0,0.00021917,2]
[356018178,1741801839451,-500.0,0.00021917,2]
[356018179,1741801839461,-471.5211211,0.00021917,2]
[356018180,1741801839471,-256.46784854,0.00021917,2]
[356018181,1741801839480,-500.0,0.00021917,2]
[356018182,1741801839489,-500.0,0.00021917,2]
[356018183,1741801839498,-500.0,0.00021917,2]
[356018184,1741801839507,-624.27,0.00021917,2]
[356018185,1741801839517,-500.0,0.00021917,2]
[356018186,1741801839526,-500.0,0.00021917,2]
[356018187,1741801839535,-500.0,0.00021917,2]
[356018188,1741801839545,-500.0,0.00021917,2]
[356018189,1741801839554,-500.0,0.00021917,2]
[356018190,1741801839563,-500.0,0.00021917,2]
[356018191,1741801839573,-500.0,0.00021917,2]
[356018192,1741801839582,-511.25787417,0.00021917,2]
[356018193,1741801839592,-229.31550462,0.00021917,2]
[356018194,1741801839601,-500.0,0.00021917,2]
[356018195,1741801839611,-871.89,0.00021917,2]
[356018196,1741801839620,-500.0,0.00021917,2]
[356018197,1741801839629,-500.0,0.00021917,2]
[356018198,1741801839638,-606.26,0.00021917,2]
[356018199,1741801839648,-500.0,0.00021917,2]
[356018200,1741801839657,-246.91650077,0.00021917,2]
[356018201,1741801839665,-500.0,0.00021917,2]
[356018202,1741801839674,-500.0,0.00021917,2]
[356018203,1741801839684,-500.0,0.00021917,2]
[356018204,1741801839693,-500.0,0.00021917,2]
[356018205,1741801839701,-880.95,0.00021917,2]
[356018206,1741801839711,-500.0,0.00021917,2]
[356018207,1741801839721,-500.0,0.00021917,2]
[356018208,1741801839730,-500.0,0.00021917,2]
[356018209,1741801839739,-500.0,0.00021917,2]
[356018210,1741801839748,-500.0,0.00021917,2]
[356018211,1741801839758,-500.0,0.00021917,2]
[356018212,1741801839769,-500.0,0.00021917,2]
[356018213,1741801839778,-500.0,0.00021917,2]
[356018214,1741801839788,-500.0,0.00021917,2]
[356018215,1741801839797,-500.0,0.00021917,2]
[356018216,1741801839807,-500.0,0.00021917,2]
[356018217,1741801839817,-500.0,0.00021917,2]
[356018218,1741801839826,-500.0,0.00021917,2]
[356018219,1741801839836,-500.0,0.00021917,2]
[356018220,1741801839845,-688.2,0.00021917,2]
[356018221,1741801839855,-500.0,0.00021917,2]
[356018222,1741801839865,-500.0,0.00021917,2]
[356018223,1741801839875,-1015.86,0.00021917,2]
[356018224,1741801839884,-500.0,0.00021917,5]
[356018225,1741801839893,-500.0,0.00021917,2]
[356018226,1741801839903,-500.0,0.00021917,2]
[356018227,1741801839912,-500.0,0.00021917,2]
[356018228,1741801839922,-500.0,0.00021917,2]
[356018229,1741801839932,-590.75785673,0.00021917,2]
[356018230,1741801839944,-500.0,0.00021917,2]
[356018231,1741801839953,-500.0,0.00021917,2]
[356018232,1741801839964,-500.0,0.00021917,2]
[356018233,1741801839973,-500.0,0.00021917,2]
[356018234,1741801839982,-500.0,0.00021917,2]
[356018235,1741801839991,-500.0,0.00021917,2]
[356018236,1741801840001,-324.02963386,0.00021917,2]
[356018237,1741801840010,-500.0,0.00021917,2]
[356018238,1741801840020,-500.0,0.00021917,2]
[356018239,1741801840029,-500.0,0.00021917,2]
[356018240,1741801840038,-500.0,0.00021917,2]
[356018241,1741801840048,-500.0,0.00021917,2]
[356018242,1741801840057,-500.0,0.00021917,2]
[356018243,1741801840066,-500.0,0.00021917,2]
[356018244,1741801840076,-500.0,0.00021917,2]
[356018245,1741801840085,-500.0,0.00021917,2]
[356018246,1741801840094,-500.0,0.00021917,2]
[356018247,1741801840103,-558.87,0.00021917,2]
[356018248,1741801840113,-500.0,0.00021917,2]
[356018249,1741801840123,-500.0,0.00021917,2]
[356018250,1741801840133,-500.0,0.00021917,2]
[356018251,1741801840142,-500.0,0.00021917,2]
[356018252,1741801840151,-500.0,0.00021917,2]
[356018253,1741801840161,-500.0,0.00021917,2]
[356018255,1741801840170,-500.0,0.00021917,2]
[356018256,1741801840180,-500.0,0.00021917,2]
[356018257,1741801840189,-509.72040281,0.00021917,2]
[356018258,1741801840199,-500.0,0.00021917,2]
[356018259,1741801840208,-500.0,0.00021917,2]
[356018260,1741801840219,-244.09021737,0.00021917,2]
[356018261,1741801840228,-598.40208354,0.00021917,2]
[356018262,1741801840237,-500.0,0.00021917,2]
[356018263,1741801840246,-500.0,0.00021917,2]
[356018264,1741801840255,-500.0,0.00021917,2]
[356018265,1741801840265,-500.0,0.00021917,2]
[356018266,1741801840274,-500.0,0.00021917,2]
[356018267,1741801840284,-500.0,0.00021917,2]
[356018268,1741801840293,-500.0,0.00021917,2]
[356018269,1741801840302,-500.0,0.00021917,2]
[356018270,1741801840311,-500.0,0.00021917,2]
[356018271,1741801840321,-500.0,0.00021917,2]
[356018273,1741801840331,-500.0,0.00021917,2]
[356018274,1741801840341,-500.0,0.00021917,2]
[356018275,1741801840350,-500.0,0.00021917,2]
[356018276,1741801840359,-500.0,0.00021917,2]
[356018277,1741801840368,-500.0,0.00021917,2]
[356018278,1741801840377,-500.0,0.00021917,2]
[356018280,1741801840386,-532.81226363,0.00021917,2]
[356018282,1741801840395,-500.0,0.00021917,2]
[356018284,1741801840404,-500.0,0.00021917,2]
[356018285,1741801840413,-151.0,0.00021917,2]
[356018286,1741801840423,-500.0,0.00021917,2]
[356018287,1741801840432,-204.931869,0.00021917,2]
[356018289,1741801840441,-500.0,0.00021917,2]
[356018291,1741801840450,-500.0,0.00021917,2]
[356018293,1741801840461,-204.931869,0.00021917,2]
[356018294,1741801840470,-500.0,0.00021917,2]
[356018296,1741801840479,-500.0,0.00021917,2]
[356018297,1741801840489,-500.0,0.00021917,2]
[356018298,1741801840498,-579.28231291,0.00021917,2]
[356018299,1741801840508,-500.0,0.00021917,2]
[356018300,1741801840517,-839.09,0.00021917,2]
[356018301,1741801840527,-500.0,0.00021917,2]
[356018302,1741801840537,-500.0,0.00021917,2]
[356018303,1741801840546,-502.96139612,0.00021917,2]
[356018304,1741801840555,-500.0,0.00021917,2]
[356018305,1741801840564,-500.0,0.00021917,2]
[356018307,1741801840573,-152.076781,0.00021917,2]
[356018309,1741801840583,-500.0,0.00021917,2]
[356018310,1741801840592,-335.133307,0.00021917,2]
[356018311,1741801840601,-500.0,0.00021917,2]
[356018312,1741801840611,-335.133307,0.00021917,2]
[356018313,1741801840621,-500.0,0.00021917,2]
[356018314,1741801840630,-500.0,0.00021917,2]
[356018315,1741801840641,-500.0,0.00021917,2]
[356018316,1741801840651,-500.0,0.00021917,2]
[356018317,1741801840661,-500.0,0.00021917,2]
[356018319,1741801840671,-151.0,0.00021917,2]
[356018320,1741801840682,-500.0,0.00021917,2]
[356018321,1741801840693,-500.0,0.00021917,2]
[356018322,1741801840703,-500.0,0.00021917,2]
[356018323,1741801840719,-500.0,0.00021917,2]
[356018324,1741801840729,-500.0,0.00021917,2]
[356018325,1741801840739,-500.0,0.00021917,2]
[356018326,1741801840749,-500.0,0.00021917,2]
[356018327,1741801840759,-500.0,0.00021917,2]
[356018328,1741801840771,-500.0,0.00021917,2]
[356018329,1741801840780,-500.0,0.00021917,2]
[356018330,1741801840790,-500.0,0.00021917,2]
[356018331,1741801840800,-500.0,0.00021917,2]
[356018332,1741801840812,-500.0,0.00021917,2]
[356018333,1741801840822,-500.0,0.00021917,2]
[356018334,1741801840831,-151.0,0.00021917,2]
[356018335,1741801840843,-917.47,0.00021917,2]
[356018336,1741801840853,-588.45553264,0.00021917,2]
[356018337,1741801840862,-500.0,0.00021917,2]
[356018338,1741801840872,-500.0,0.00021917,2]
[356018339,1741801840882,-500.0,0.00021917,2]
[356018340,1741801840892,-1375.22,0.00021917,2]
[356018341,1741801840901,-500.0,0.00021917,2]
[356018342,1741801840911,-500.0,0.00021917,2]
[356018343,1741801840921,-500.0,0.00021917,2]
[356018344,1741801840931,-500.0,0.00021917,2]
[356018345,1741801840940,-504.99093472,0.00021917,2]
[356018346,1741801840950,-500.0,0.00021917,2]
[356018347,1741801840963,-500.0,0.00021917,2]
[356018348,1741801840972,-500.0,0.00021917,2]
[356018349,1741801840982,-500.0,0.00021917,2]
[356018350,1741801840991,-161.402126,0.00021917,2]
[356018351,1741801841001,-500.0,0.00021917,2]
[356018352,1741801841011,-500.0,0.00021917,2]
[356018353,1741801841020,-500.0,0.00021917,2]
[356018354,1741801841031,-522.59887614,0.00021917,2]
[356018355,1741801841040,-500.0,0.00021917,2]
[356018356,1741801841051,-151.0,0.00021917,2]
[356018357,1741801841060,-151.0,0.00021917,2]
[356018358,1741801841069,-500.0,0.00021917,2]
[356018359,1741801841082,-911.67,0.00021917,2]
[356018360,1741801841091,-500.0,0.00021917,2]
[356018361,1741801841107,-500.0,0.00021917,2]
[356018362,1741801841116,-500.0,0.00021917,2]
[356018363,1741801841125,-500.0,0.00021917,2]
[356018364,1741801841135,-505.58278429,0.00021917,2]
[356018365,1741801841144,-500.0,0.00021917,2]
[356018366,1741801841154,-500.0,0.00021917,2]
[356018367,1741801841163,-500.0,0.00021917,2]
[356018368,1741801841173,-500.0,0.00021917,2]
[356018369,1741801841183,-500.0,0.00021917,2]
[356018370,1741801841192,-500.0,0.00021917,2]
[356018371,1741801841201,-500.0,0.00021917,2]
[356018372,1741801841214,-500.0,0.00021917,2]
[356018373,1741801841223,-500.0,0.00021917,2]
[356018374,1741801841232,-500.0,0.00021917,2]
[356018375,1741801841241,-161.492389,0.00021917,2]
[356018376,1741801841251,-500.0,0.00021917,2]
[356018377,1741801841260,-500.0,0.00021917,2]
[356018378,1741801841270,-835.97,0.00021917,2]
[356018379,1741801841279,-161.492389,0.00021917,2]
[356018380,1741801841289,-500.0,0.00021917,2]
[356018381,1741801841299,-172.485941,0.00021917,2]
[356018382,1741801841309,-151.930361,0.00021917,2]
[356018383,1741801841318,-172.485941,0.00021917,2]
[356018384,1741801841328,-500.0,0.00021917,2]
[356018385,1741801841338,-846.78,0.00021917,2]
[356018386,1741801841349,-500.0,0.00021917,2]
[356018387,1741801841358,-500.0,0.00021917,2]
[356018388,1741801841368,-1652.26,0.00021917,2]
[356018389,1741801841378,-151.0,0.00021917,2]
[356018390,1741801841387,-500.0,0.00021917,2]
[356018391,1741801841396,-538.33,0.00021917,2]
[356018392,1741801841405,-151.0,0.00021917,2]
[356018393,1741801841415,-500.0,0.00021917,2]
[356018394,1741801841425,-151.0,0.00021917,2]
[356018395,1741801841434,-500.0,0.00021917,2]
[356018396,1741801841444,-500.0,0.00021917,2]
[356018397,1741801841453,-500.0,0.00021917,2]
[356018398,1741801841465,-500.0,0.00021917,2]
[356018399,1741801841475,-500.0,0.00021917,2]
[356018400,1741801841484,-500.0,0.00021917,2]
[356018401,1741801841493,-522.7,0.00021917,2]
[356018402,1741801841503,-500.0,0.00021917,2]